bitfinex-derivatives/quotes_BTCF0:USTF0_20241226
["timestamp","ask_amount","ask_price","bid_price","bid_amount"]
[1735197451751,0.00209369,98179.0,98178.0,0.0593]
[1735197451952,0.040781,98186.0,98182.0,0.040783]
[1735197452167,0.040781,98186.0,98183.0,0.040782]
[1735197452470,0.040781,98186.0,98183.0,0.040862]
[1735197452965,0.041781,98186.0,98183.0,0.040862]
[1735197454160,0.041781,98186.0,98183.0,0.042862]
[1735197454368,0.042781,98186.0,98183.0,0.042862]
[1735197454568,0.040782,98185.0,98183.0,0.00208]
[1735197455362,0.040782,98185.0,98183.0,0.00708]
[1735197455765,0.040782,98185.0,98183.0,0.00508]
[1735197455965,0.041782,98185.0,98183.0,0.00208]
[1735197456270,0.041782,98185.0,98183.0,0.00708]
[1735197463075,0.041782,98185.0,98183.0,0.25112696]
[1735197464690,0.041782,98185.0,98184.0,0.24404696]
[1735197466175,0.041782,98185.0,98183.0,0.00708]
[1735197466467,4e-05,98184.0,98183.0,0.00708]
[1735197467276,4e-05,98184.0,98183.0,0.00208]
[1735197467581,4e-05,98184.0,98183.0,8e-05]
[1735197468073,0.00104,98184.0,98183.0,0.00708]
[1735197486887,0.040776,98199.0,98183.0,0.00708]
[1735197487074,0.18286867,98202.0,98189.0,0.06542509]
[1735197487279,0.18286867,98202.0,98200.0,0.040775]
[1735197487481,0.18286867,98202.0,98201.0,0.05408]
[1735197487680,0.18286867,98211.0,98201.0,0.05408]
[1735197487987,0.18286867,98211.0,98210.0,8e-05]
[1735197488789,0.22363967,98211.0,98210.0,8e-05]
[1735197489089,0.040771,98211.0,98210.0,8e-05]
[1735197490891,0.16288429,98211.0,98210.0,8e-05]
[1735197492386,0.040771,98211.0,98210.0,8e-05]
[1735197502803,0.05201871,98211.0,98210.0,8e-05]
[1735197503916,0.040778,98194.0,98193.0,0.24383042]
[1735197504213,0.040818,98194.0,98193.0,0.24383042]
[1735197505114,0.040818,98194.0,98193.0,0.24683042]
[1735197505318,0.040818,98194.0,98193.0,0.003]
[1735197506618,0.041818,98194.0,98193.0,0.005]
[1735197526719,0.13330203,98194.0,98193.0,0.005]
[1735197527827,0.041818,98194.0,98193.0,0.005]
[1735197531835,0.16393129,98194.0,98193.0,0.005]
[1735197532928,0.16393129,98194.0,98184.0,0.30425075]
[1735197532929,0.04078,98190.0,98184.0,0.30425075]
[1735197533336,4e-05,98185.0,98184.0,0.30425075]
[1735197533942,0.040822,98185.0,98184.0,0.30425075]
[1735197534735,0.040822,98185.0,98184.0,0.31025075]
[1735197534936,0.040822,98185.0,98184.0,0.006]
[1735197535328,0.041822,98185.0,98184.0,0.006]
[1735197535954,0.05299833,98185.0,98184.0,0.006]
[1735197536335,0.041822,98185.0,98184.0,0.006]
[1735197540428,0.05264535,98185.0,98184.0,0.006]
[1735197541638,0.040788,98169.0,98168.0,0.0524]
[1735197542334,0.040788,98169.0,98166.0,0.36031075]
[1735197542335,0.040789,98167.0,98166.0,0.36031075]
[1735197542542,0.040789,98167.0,98166.0,0.30425075]
[1735197542741,0.040829,98167.0,98166.0,0.30425075]
[1735197543545,0.040829,98167.0,98160.0,0.3661409]
[1735197543546,0.040792,98161.0,98160.0,0.00104]
[1735197543737,4e-05,98167.0,98157.0,0.30425075]
[1735197543738,0.040793,98159.0,98157.0,0.30425075]
[1735197543937,0.040793,98159.0,98157.0,0.315267]
[1735197544135,4e-05,98158.0,98157.0,0.315267]
[1735197544842,4e-05,98158.0,98157.0,0.32545282]
[1735197545341,0.00104,98158.0,98157.0,0.02120207]
[1735197545730,0.00204,98158.0,98157.0,0.02120001]
[1735197546747,0.00204,98158.0,98157.0,0.01101625]
[1735197547045,0.040793,98157.0,98152.0,0.0507]
[1735197547339,4e-05,98153.0,98152.0,0.06177863]
[1735197548237,4e-05,98153.0,98152.0,0.06477863]
[1735197549043,0.00204,98153.0,98152.0,0.06477863]
[1735197552651,0.00204,98153.0,98152.0,0.07496361]
[1735197554040,0.00204,98153.0,98152.0,0.07495962]
[1735197554747,0.00204,98153.0,98152.0,0.07495977]
[1735197554950,0.00104,98153.0,98152.0,0.07195977]
[1735197555147,0.00104,98153.0,98152.0,0.07495977]
[1735197555148,0.00204,98153.0,98152.0,0.07495977]
[1735197557253,0.00204,98153.0,98152.0,0.07495855]
[1735197559747,0.00204,98153.0,98152.0,0.11767863]
[1735197563451,0.040792,98161.0,98152.0,0.11767863]
[1735197563652,0.040792,98160.0,98154.0,0.040794]
[1735197564245,0.09159033,98161.0,98154.0,0.040794]
[1735197564450,0.040793,98159.0,98154.0,0.040794]
[1735197565552,0.13238333,98159.0,98156.0,0.18277335]
[1735197566760,0.13338333,98159.0,98156.0,0.18277335]
[1735197567556,0.13438333,98159.0,98156.0,0.18677335]
[1735197568254,0.13438333,98159.0,98158.0,0.18277335]
[1735197568455,0.042793,98159.0,98158.0,0.18277335]
[1735197569959,0.042793,98159.0,98158.0,0.18677335]
[1735197570164,0.041793,98159.0,98158.0,0.18677335]
[1735197570351,0.042793,98159.0,98158.0,0.18777335]
[1735197571464,0.042793,98159.0,98158.0,0.005]
[1735197574258,0.040793,98159.0,98158.0,0.18577335]
[1735197574458,0.041793,98159.0,98158.0,0.18677335]
[1735197576859,0.041793,98159.0,98158.0,0.004]
[1735197579858,0.041793,98159.0,98158.0,0.18677335]
[1735197580969,0.041793,98159.0,98158.0,0.004]
[1735197582166,0.19442251,98159.0,98158.0,0.004]
[1735197582961,0.041793,98159.0,98158.0,0.004]
[1735197584364,0.19442251,98159.0,98158.0,0.004]
[1735197585973,0.19442251,98159.0,98158.0,0.001]
[1735197585974,0.09156443,98159.0,98158.0,0.001]
[1735197586173,0.09156443,98159.0,98158.0,0.004]
[1735197586369,0.09056443,98159.0,98158.0,0.003]
[1735197586568,0.09156443,98159.0,98158.0,0.004]
[1735197586960,0.09056443,98159.0,98158.0,0.002]
[1735197587166,0.09156443,98159.0,98158.0,0.003]
[1735197588177,0.041793,98159.0,98158.0,0.003]
[1735197589174,0.041793,98159.0,98147.0,0.18312209]
[1735197589376,0.040797,98148.0,98147.0,0.18312209]
[1735197589570,0.040837,98148.0,98147.0,0.18312209]
[1735197589771,0.040837,98148.0,98146.0,0.00013174]
[1735197590173,4e-05,98147.0,98146.0,0.00013174]
[1735197591173,4e-05,98147.0,98146.0,0.00313174]
[1735197592374,4e-05,98147.0,98146.0,0.05393174]
[1735197592572,4e-05,98147.0,98146.0,0.10443174]
[1735197593288,0.00104,98147.0,98146.0,0.15243174]
[1735197593471,0.12219807,98149.0,98147.0,0.040797]
[1735197593782,0.12219807,98149.0,98148.0,8e-05]
[1735197594080,0.09163414,98151.0,98148.0,8e-05]
[1735197594379,0.16299207,98155.0,98150.0,8e-05]
[1735197594582,0.12219807,98155.0,98153.0,0.040795]
[1735197594782,0.12219807,98155.0,98154.0,8e-05]
[1735197595282,0.12219807,98159.0,98154.0,0.18314361]
[1735197595684,0.12219807,98159.0,98158.0,8e-05]
[1735197596679,0.040792,98161.0,98158.0,8e-05]
[1735197596680,0.12219807,98160.0,98158.0,8e-05]
[1735197597084,0.12219807,98160.0,98159.0,8e-05]
[1735197598176,0.12319807,98160.0,98159.0,8e-05]
[1735197598483,0.12319807,98160.0,98159.0,0.00208]
[1735197599371,0.001,98160.0,98159.0,0.00208]
[1735197599676,0.001,98160.0,98159.0,0.00308]
[1735197607091,0.12321741,98160.0,98159.0,0.00308]
[1735197613393,0.001,98160.0,98159.0,0.18617641]
[1735197620294,0.001,98160.0,98159.0,0.00308]
[1735197625701,0.15374759,98160.0,98159.0,0.00308]
[1735197630201,0.040797,98147.0,98146.0,0.36619264]
[1735197630506,0.040837,98147.0,98146.0,0.36523264]
[1735197631004,0.040837,98147.0,98146.0,0.00013174]
[1735197632208,0.041837,98147.0,98146.0,0.00013174]
[1735197632705,0.040837,98147.0,98146.0,0.00013174]
[1735197643714,0.09367708,98147.0,98146.0,0.00013174]
[1735197643917,0.09367708,98147.0,98135.0,0.18313396]
[1735197644214,0.040842,98136.0,98135.0,0.18313396]
[1735197644616,0.040842,98136.0,98129.0,0.0533]
[1735197644617,0.040842,98136.0,98134.0,0.18313396]
[1735197645016,0.00015939,98135.0,98134.0,0.18313396]
[1735197645723,0.00015939,98135.0,98129.0,0.0533]
[1735197645919,0.040805,98130.0,98129.0,0.0533]
[1735197646220,0.040845,98130.0,98129.0,0.0533]
[1735197648222,0.040845,98130.0,98129.0,0.0543]
[1735197648528,0.041845,98130.0,98129.0,0.0543]
[1735197655209,0.041845,98130.0,98129.0,0.001]
[1735197658312,0.16403317,98130.0,98129.0,0.001]
[1735197660324,0.041845,98130.0,98129.0,0.001]
[1735197663821,0.16402937,98130.0,98129.0,0.001]
[1735197665222,0.15273521,98136.0,98129.0,0.301]
[1735197665531,0.040793,98158.0,98135.0,8e-05]
[1735197665831,0.21493123,98156.0,98155.0,8e-05]
[1735197666129,0.21493123,98156.0,98155.0,0.040874]
[1735197666834,0.00152855,98156.0,98155.0,0.05136125]
[1735197667230,0.00352855,98156.0,98155.0,0.05136125]
[1735197667431,0.00552855,98156.0,98155.0,0.05136125]
[1735197667626,0.00552855,98156.0,98155.0,0.05134895]
[1735197668934,0.00552855,98156.0,98155.0,0.01055495]
[1735197674427,0.00552855,98156.0,98155.0,0.0105221]
[1735197676823,0.00552855,98156.0,98155.0,0.01051933]
[1735197679336,0.004,98156.0,98155.0,0.01051933]
[1735197679929,0.004,98156.0,98155.0,0.01051281]
[1735197682940,0.044794,98156.0,98155.0,0.01051281]
[1735197683640,0.044794,98156.0,98155.0,0.01052713]
[1735197692138,0.044794,98156.0,98155.0,0.01055327]
[1735197694540,0.044794,98156.0,98155.0,0.0105781]
[1735197695139,0.044794,98156.0,98155.0,0.01058587]
[1735197698154,0.044794,98156.0,98155.0,0.01059459]
[1735197701759,0.044794,98156.0,98155.0,0.01057704]
[1735197704359,0.044794,98156.0,98155.0,0.01057696]
[1735197707252,0.044794,98156.0,98155.0,0.01057327]
[1735197710251,0.044794,98156.0,98155.0,8e-05]
[1735197710461,0.044794,98156.0,98155.0,0.01057686]
[1735197710964,0.044794,98156.0,98155.0,0.01057734]
[1735197713257,0.004,98156.0,98155.0,0.01057734]
[1735197713463,0.004,98156.0,98155.0,0.01058186]
[1735197716266,0.004,98156.0,98155.0,0.25442935]
[1735197717169,0.004,98156.0,98155.0,0.25443277]
[1735197717355,0.004,98156.0,98155.0,0.01058528]
[1735197719562,0.004,98156.0,98155.0,8e-05]
[1735197719766,0.004,98156.0,98155.0,0.01058875]
[1735197720077,0.004,98156.0,98155.0,8e-05]
[1735197720365,0.004,98156.0,98155.0,0.01058876]
[1735197720870,0.004,98156.0,98155.0,0.02117844]
[1735197721867,0.004,98156.0,98155.0,0.02117752]
[1735197722070,0.004,98156.0,98155.0,0.26528721]
[1735197722970,0.004,98156.0,98155.0,0.25469753]
[1735197724473,0.004,98156.0,98155.0,0.01058768]
[1735197724970,0.004,98156.0,98155.0,0.01059262]
[1735197728979,0.20804039,98156.0,98155.0,0.01059262]
[1735197730864,0.20804039,98156.0,98155.0,0.01048595]
[1735197731376,0.20804039,98156.0,98155.0,0.01048607]
[1735197731577,0.0554,98156.0,98155.0,0.01048607]
[1735197732775,0.040796,98150.0,98149.0,0.24410985]
[1735197733575,0.0554,98156.0,98146.0,0.24410985]
[1735197733879,0.040797,98147.0,98146.0,0.24410985]
[1735197735079,0.0408,98142.0,98139.0,0.24410985]
[1735197735484,4e-05,98140.0,98139.0,0.24410985]
[1735197735670,0.04084,98140.0,98139.0,0.24410985]
[1735197736179,0.04084,98140.0,98139.0,0.24610985]
[1735197736370,0.04084,98140.0,98139.0,0.002]
[1735197736770,0.04184,98140.0,98139.0,0.002]
[1735197737765,0.1335146,98140.0,98139.0,0.002]
[1735197738975,0.04184,98140.0,98139.0,0.002]
[1735197744576,0.1640728,98140.0,98139.0,0.01231376]
[1735197747483,0.04184,98140.0,98139.0,0.01231376]
[1735197748979,0.04184,98140.0,98139.0,0.002]
[1735197749284,0.04184,98140.0,98139.0,0.01231662]
[1735197749580,0.04184,98140.0,98139.0,0.01231685]
[1735197755178,0.040807,98124.0,98119.0,0.10812876]
[1735197755387,0.040809,98120.0,98119.0,0.00152876]
[1735197755585,0.040849,98120.0,98119.0,0.00152876]
[1735197756287,0.040849,98120.0,98119.0,0.00252876]
[1735197756876,0.041849,98120.0,98119.0,0.00252876]
[1735197757280,0.042849,98120.0,98119.0,0.00252876]
[1735197758791,0.05319733,98120.0,98119.0,0.00252876]
[1735197762394,0.05119733,98120.0,98119.0,0.00152876]
[1735197762589,0.05319733,98120.0,98119.0,0.00152876]
[1735197762791,0.040812,98111.0,98110.0,0.24410985]
[1735197763292,0.040852,98111.0,98110.0,0.24410985]
[1735197764188,0.041852,98111.0,98109.0,0.24410985]
[1735197764490,4e-05,98110.0,98109.0,0.24410985]
[1735197766491,0.00104,98110.0,98109.0,0.24410985]
[1735197767094,0.00104,98110.0,98106.0,0.11927261]
[1735197767294,0.00104,98110.0,98107.0,0.01023013]
[1735197767499,0.040813,98109.0,98108.0,0.01023013]
[1735197767907,0.040813,98109.0,98108.0,0.01022945]
[1735197768603,0.040813,98109.0,98108.0,0.25446608]
[1735197769499,0.041813,98109.0,98108.0,0.25446608]
[1735197771003,0.041813,98109.0,98108.0,0.01022945]
[1735197773505,0.041813,98109.0,98108.0,0.01021231]
[1735197774803,0.001,98109.0,98101.0,0.24423663]
[1735197775006,0.040815,98106.0,98100.0,0.39913663]
[1735197775604,0.040815,98105.0,98100.0,0.39913663]
[1735197776806,0.040816,98104.0,98100.0,0.39913663]
[1735197777394,0.040816,98103.0,98100.0,0.39913663]
[1735197777999,0.040816,98102.0,98100.0,0.39913663]
[1735197778505,0.040816,98102.0,98101.0,0.24423663]
[1735197782807,0.040816,98102.0,98100.0,0.1]
[1735197783214,4e-05,98101.0,98100.0,0.1]
[1735197783716,0.04079145,98102.0,98100.0,0.1]
[1735197784218,0.04079145,98102.0,98100.0,0.34423663]
[1735197785514,0.04079145,98102.0,98100.0,0.1]
[1735197786915,0.09160056,98103.0,98100.0,0.1]
[1735197787216,0.15266831,98113.0,98111.0,0.040812]
[1735197787404,0.15266831,98113.0,98112.0,0.1057]
[1735197787604,0.15266831,98113.0,98112.0,0.1584]
[1735197788212,0.040806,98127.0,98112.0,0.36496797]
[1735197788620,0.040806,98127.0,98126.0,8e-05]
[1735197790514,0.044806,98127.0,98126.0,8e-05]
[1735197791216,0.051806,98127.0,98126.0,8e-05]
[1735197794313,0.011,98127.0,98126.0,8e-05]
[1735197799917,0.011,98127.0,98126.0,0.01134952]
[1735197803229,0.011,98127.0,98126.0,0.01135146]
[1735197805231,0.011,98127.0,98126.0,0.01135751]
[1735197808940,0.011,98127.0,98126.0,0.01138185]
[1735197812636,0.011,98127.0,98126.0,0.0113788]
[1735197813536,0.15266831,98139.0,98126.0,0.0113788]
[1735197813742,0.15266831,98139.0,98137.0,0.040801]
[1735197813937,0.054,98169.0,98138.0,0.1179788]
[1735197814136,0.21369655,98157.0,98156.0,0.040794]
[1735197814340,0.21369655,98157.0,98156.0,0.040874]
[1735197814529,0.21369655,98157.0,98156.0,0.05213818]
[1735197814937,0.21369655,98157.0,98156.0,0.040874]
[1735197815134,0.21369655,98157.0,98156.0,0.05213843]
[1735197815335,0.22269655,98157.0,98156.0,0.05213843]
[1735197815939,0.009,98157.0,98156.0,0.27667876]
[1735197816140,0.013,98157.0,98156.0,0.27667876]
[1735197816646,0.004,98157.0,98156.0,0.27667876]
[1735197816836,0.011,98157.0,98156.0,0.27767876]
[1735197817237,0.004,98157.0,98156.0,0.27667876]
[1735197817438,0.005,98157.0,98156.0,0.27667876]
[1735197818340,0.003,98157.0,98156.0,0.05213843]
[1735197820436,0.003,98157.0,98156.0,0.06264737]
[1735197821538,0.003,98157.0,98156.0,0.05138294]
[1735197821738,0.003,98157.0,98156.0,0.0626286]
[1735197824237,0.003,98157.0,98156.0,0.06262423]
[1735197825942,0.043793,98157.0,98156.0,0.01132129]
[1735197829340,0.043793,98157.0,98156.0,8e-05]
[1735197833336,0.05387028,98157.0,98156.0,8e-05]
[1735197834347,0.043793,98157.0,98156.0,8e-05]
[1735197836153,0.003,98157.0,98156.0,8e-05]
[1735197846986,0.003,98157.0,98156.0,0.24403664]
[1735197848396,0.003,98157.0,98156.0,0.28483064]
[1735197849797,0.003,98157.0,98156.0,0.040874]
[1735197849990,0.003,98157.0,98156.0,0.05099004]
[1735197851500,0.003,98157.0,98156.0,0.27101206]
[1735197853199,0.12215609,98174.0,98156.0,0.23021806]
[1735197853401,0.12215609,98174.0,98161.0,0.040791]
[1735197853700,0.04079,98165.0,98161.0,0.040791]
[1735197855895,0.04079,98165.0,98162.0,0.040791]
[1735197856191,0.04379,98165.0,98163.0,0.040791]
[1735197856497,0.04879,98165.0,98163.0,0.040791]
[1735197857298,0.008,98165.0,98163.0,0.040791]
[1735197857596,0.005,98165.0,98163.0,0.041791]
[1735197857794,0.008,98165.0,98163.0,0.041791]
[1735197863190,0.04879,98165.0,98163.0,0.001]
[1735197863383,0.1079,98164.0,98163.0,0.001]
[1735197863584,0.1079,98164.0,98159.0,0.3048983]
[1735197863771,0.040792,98160.0,98159.0,0.1302983]
[1735197863977,0.040793,98158.0,98157.0,0.1302983]
[1735197864457,0.040833,98158.0,98157.0,0.0429983]
[1735197865361,4e-05,98158.0,98151.0,0.24405507]
[1735197865665,0.040835,98152.0,98151.0,0.24405507]
[1735197866861,0.040796,98150.0,98149.0,0.24405507]
[1735197867760,0.040836,98150.0,98149.0,0.24405507]
[1735197868267,0.040836,98150.0,98148.0,0.24405507]
[1735197868568,4e-05,98149.0,98148.0,0.24405507]
[1735197869470,4e-05,98149.0,98148.0,0.24505507]
[1735197869877,4e-05,98149.0,98148.0,0.24605507]
[1735197871271,4e-05,98149.0,98148.0,0.002]
[1735197890384,0.12223141,98149.0,98148.0,0.002]
[1735197891784,4e-05,98149.0,98148.0,0.002]
[1735197893169,4e-05,98149.0,98148.0,0.18505694]
[1735197894577,4e-05,98149.0,98148.0,0.002]
[1735197898680,0.15271334,98149.0,98148.0,0.002]
[1735197899900,0.04963692,98149.0,98148.0,0.002]
[1735197901484,4e-05,98149.0,98148.0,0.002]
[1735197902998,0.04963692,98149.0,98148.0,0.002]
[1735197909413,0.23313942,98149.0,98148.0,0.002]
[1735197910808,0.04963692,98149.0,98148.0,0.002]
[1735197929823,0.21425656,98158.0,98148.0,0.002]
[1735197930014,0.13219655,98158.0,98154.0,0.040794]
[1735197930213,0.13219655,98158.0,98155.0,0.040794]
[1735197930424,0.05069655,98158.0,98156.0,0.040793]
[1735197930825,0.24474464,98163.0,98158.0,0.040793]
[1735197931122,0.002,98158.0,98153.0,0.06548772]
[1735197931325,0.004,98158.0,98157.0,0.040793]
[1735197931922,0.15285912,98164.0,98156.0,0.24405507]
[1735197932124,0.002,98158.0,98157.0,0.040793]
[1735197932318,0.15285912,98164.0,98156.0,0.24405507]
[1735197932519,0.09160485,98167.0,98155.0,0.30568903]
[1735197932728,0.09160485,98167.0,98163.0,8e-05]
[1735197932914,0.09160485,98167.0,98166.0,8e-05]
[1735197933829,0.09560485,98167.0,98166.0,8e-05]
[1735197934029,0.004,98167.0,98166.0,8e-05]
[1735197934330,0.01,98167.0,98166.0,0.00108]
[1735197939229,0.050789,98167.0,98166.0,0.00108]
[1735197952041,0.01,98167.0,98166.0,0.00108]
[1735197952239,0.01,98167.0,98166.0,0.11078]
[1735197961344,0.01,98167.0,98166.0,0.32754385]
[1735197970548,0.01,98167.0,98166.0,0.63264951]
[1735197973246,0.01,98167.0,98166.0,0.52294951]
[1735197974384,0.01,98167.0,98166.0,0.30618566]
[1735197975679,0.01,98167.0,98166.0,0.00108]
[1735197978973,0.10160485,98167.0,98166.0,0.00108]
[1735197980258,0.01,98167.0,98166.0,0.52114948]
[1735197981852,0.01,98167.0,98166.0,0.21604382]
[1735197987095,0.050789,98167.0,98166.0,0.13184382]
[1735197987294,0.050789,98167.0,98166.0,0.04764382]
[1735197988700,0.040791,98163.0,98162.0,0.00096]
[1735197988895,0.05957527,98167.0,98159.0,0.18306135]
[1735197989092,0.040792,98160.0,98159.0,0.18306135]
[1735197990092,0.040792,98160.0,98159.0,0.001]
[1735197990494,0.040793,98159.0,98157.0,0.24849003]
[1735197990680,0.040793,98159.0,98157.0,0.18306135]
[1735197990981,0.05104,98158.0,98157.0,0.18306135]
[1735197991176,0.17318441,98158.0,98151.0,0.28487681]
[1735197991972,4e-05,98152.0,98151.0,0.28487681]
[1735197992174,0.09163144,98152.0,98151.0,0.040795]
[1735197994171,0.09163144,98152.0,98151.0,0.041795]
[1735197994474,0.09263144,98152.0,98151.0,0.041795]
[1735197994777,0.00104,98152.0,98151.0,0.041795]
[1735198011279,0.00104,98152.0,98151.0,0.28587681]
[1735198013685,0.00104,98152.0,98151.0,0.041795]
[1735198017291,0.041835,98152.0,98151.0,0.001]
[1735198018595,0.16397941,98152.0,98151.0,0.001]
[1735198022400,0.041835,98152.0,98151.0,0.001]
[1735198025095,0.041835,98152.0,98151.0,0.30610226]
[1735198025999,0.041835,98152.0,98151.0,0.001]
[1735198027802,0.09141543,98152.0,98151.0,0.001]
[1735198029103,0.1947073,98152.0,98151.0,0.001]
[1735198030200,0.041835,98152.0,98151.0,0.001]
[1735198042621,0.040802,98135.0,98120.0,0.040808]
[1735198042811,0.040802,98135.0,98110.0,0.06542868]
[1735198042812,0.040802,98135.0,98133.0,0.30510226]
[1735198043011,0.040842,98135.0,98133.0,0.30510226]
[1735198043212,4e-05,98134.0,98133.0,0.30510226]
[1735198043604,0.06542868,98150.0,98133.0,0.35660226]
[1735198043808,0.001,98135.0,98134.0,0.007]
[1735198044020,0.040801,98139.0,98134.0,0.007]
[1735198044215,0.040801,98139.0,98134.0,0.003]
[1735198044414,0.12219716,98135.0,98134.0,0.003]
[1735198044611,0.03879716,98135.0,98134.0,0.003]
[1735198045020,0.03879716,98135.0,98134.0,0.01]
[1735198045021,0.03979716,98135.0,98134.0,0.01]
[1735198045524,0.001,98135.0,98134.0,0.01]
[1735198046722,0.001,98135.0,98134.0,0.02042092]
[1735198046921,0.001,98135.0,98134.0,0.01]
[1735198049419,0.001,98135.0,98134.0,0.02000895]
[1735198049621,0.001,98135.0,98134.0,0.01]
[1735198052015,0.001,98135.0,98134.0,0.02004984]
[1735198052216,0.001,98135.0,98134.0,0.01]
[1735198063829,0.1528723,98142.0,98140.0,0.0408]
[1735198064031,0.1528723,98142.0,98141.0,0.03804312]
[1735198064230,0.1528723,98142.0,98141.0,0.03812312]
[1735198065020,0.1528723,98142.0,98141.0,0.04212312]
[1735198065733,0.1528723,98142.0,98141.0,0.00408]
[1735198065922,0.1528723,98142.0,98141.0,0.00508]
[1735198071336,0.1528723,98142.0,98141.0,0.0155093]
[1735198074035,0.040799,98143.0,98141.0,0.0155093]
[1735198074438,0.040799,98143.0,98142.0,8e-05]
[1735198076943,0.040799,98143.0,98142.0,0.00108]
[1735198078040,0.040799,98143.0,98142.0,0.00508]
[1735198080943,0.05086903,98143.0,98142.0,0.00508]
[1735198088152,0.040799,98143.0,98142.0,0.00508]
[1735198105071,0.19365481,98143.0,98142.0,0.00508]
[1735198109166,0.09227869,98143.0,98142.0,0.00508]
[1735198110359,0.040799,98143.0,98142.0,0.00508]
[1735198112069,0.09227869,98143.0,98142.0,0.00508]
[1735198125680,0.040803,98133.0,98132.0,0.24424847]
[1735198126179,0.040805,98129.0,98128.0,0.24424847]
[1735198126569,0.040845,98129.0,98128.0,0.24424847]
[1735198127572,0.041845,98129.0,98128.0,0.009]
[1735198127776,0.040807,98124.0,98123.0,0.24424847]
[1735198128172,0.040847,98124.0,98123.0,0.24424847]
[1735198129178,0.040847,98124.0,98110.0,0.36673124]
[1735198129179,0.040811,98115.0,98114.0,0.24424847]
[1735198130076,0.040851,98115.0,98114.0,0.24424847]
[1735198130477,0.13252209,98115.0,98114.0,0.002]
[1735198130791,0.13352209,98115.0,98114.0,0.002]
[1735198131883,0.041851,98115.0,98114.0,0.002]
[1735198133471,0.041851,98115.0,98108.0,0.00152895]
[1735198133472,0.040813,98109.0,98108.0,0.00152895]
[1735198133977,0.040853,98109.0,98108.0,0.00152895]
[1735198134687,0.041853,98109.0,98108.0,0.00152895]
[1735198134987,0.040816,98103.0,98102.0,0.24424847]
[1735198135385,4e-05,98103.0,98100.0,0.1]
[1735198135580,0.040817,98101.0,98100.0,0.1]
[1735198135781,0.040857,98101.0,98100.0,0.1]
[1735198137889,0.040857,98101.0,98093.0,0.24424847]
[1735198137890,0.04082,98094.0,98093.0,0.24424847]
[1735198138287,4e-05,98101.0,98086.0,0.24424847]
[1735198138488,0.040822,98089.0,98086.0,0.24424847]
[1735198138679,4e-05,98087.0,98086.0,0.24424847]
[1735198139693,4e-05,98087.0,98086.0,0.24724847]
[1735198139891,4e-05,98087.0,98086.0,0.003]
[1735198140482,0.00104,98087.0,98086.0,0.003]
[1735198154900,0.09259601,98087.0,98086.0,0.003]
[1735198156304,0.00104,98087.0,98086.0,0.003]
[1735198156998,0.00104,98087.0,98071.0,0.1072]
[1735198157206,0.040824,98084.0,98072.0,0.01037901]
[1735198157503,0.040864,98084.0,98072.0,0.01037901]
[1735198158200,0.040864,98084.0,98083.0,0.00207721]
[1735198159096,0.041864,98084.0,98083.0,0.00207721]
[1735198164106,0.041864,98084.0,98083.0,0.18525068]
[1735198165207,0.041864,98084.0,98083.0,0.23865068]
[1735198165410,0.13344369,98084.0,98083.0,0.05547721]
[1735198167304,0.13344369,98084.0,98083.0,0.00207721]
[1735198168305,0.041864,98084.0,98083.0,0.00207721]
[1735198170713,0.05234092,98084.0,98083.0,0.00207721]
[1735198171315,0.01151692,98084.0,98081.0,0.0732986]
[1735198171518,0.040825,98082.0,98081.0,0.0732986]
[1735198171820,0.040865,98082.0,98081.0,0.0732986]
[1735198172515,0.04095456,98082.0,98081.0,0.0752986]
[1735198172715,0.04195456,98082.0,98081.0,0.002]
[1735198173102,0.09405456,98082.0,98081.0,0.002]
[1735198173717,0.04195456,98082.0,98081.0,0.002]
[1735198174014,0.04195456,98082.0,98081.0,0.18551259]
[1735198174812,0.04095456,98082.0,98081.0,0.002]
[1735198175513,0.04495456,98082.0,98081.0,0.002]
[1735198175717,0.04695456,98082.0,98080.0,0.18351259]
[1735198176013,4e-05,98081.0,98080.0,0.18351259]
[1735198178420,0.00404,98081.0,98080.0,0.18351259]
[1735198178719,0.00604,98081.0,98080.0,0.18351259]
[1735198181324,0.15893056,98081.0,98077.0,0.18351259]
[1735198181520,0.040826,98078.0,98077.0,0.18351259]
[1735198182318,0.040866,98078.0,98077.0,0.18351259]
[1735198183807,0.040866,98078.0,98076.0,0.18351259]
[1735198184209,4e-05,98077.0,98076.0,0.18351259]
[1735198185212,0.040827,98076.0,98075.0,0.18351259]
[1735198185621,0.040867,98076.0,98075.0,0.18351259]
[1735198187423,0.042867,98076.0,98075.0,0.18351259]
[1735198187611,0.043867,98076.0,98075.0,0.18351259]
[1735198188221,0.00304,98076.0,98073.0,0.18351259]
[1735198188428,0.040828,98075.0,98073.0,0.18351259]
[1735198188607,4e-05,98074.0,98073.0,0.18351259]
[1735198189515,4e-05,98074.0,98067.0,0.05126303]
[1735198189516,0.12220215,98074.0,98071.0,0.18351259]
[1735198189715,0.040828,98073.0,98071.0,0.18351259]
[1735198189919,4e-05,98072.0,98071.0,0.18351259]
[1735198193223,4e-05,98072.0,98071.0,0.32893461]
[1735198193428,4e-05,98072.0,98071.0,0.1073]
[1735198194412,0.04083,98068.0,98066.0,0.30492909]
[1735198194825,4e-05,98067.0,98063.0,0.01001215]
[1735198195016,0.040831,98066.0,98057.0,0.32615201]
[1735198195216,4e-05,98064.0,98057.0,0.32615201]
[1735198195421,4e-05,98062.0,98057.0,0.32615201]
[1735198196114,4e-05,98062.0,98058.0,0.30574768]
[1735198196323,4e-05,98062.0,98058.0,0.34658168]
[1735198197227,4e-05,98062.0,98059.0,0.30574768]
[1735198197624,0.00011553,98062.0,98059.0,0.30574768]
[1735198198027,0.00111553,98062.0,98059.0,0.30574768]
[1735198198632,0.00111553,98062.0,98057.0,0.0518]
[1735198199726,0.00111553,98062.0,98056.0,0.30574768]
[1735198199927,0.00111553,98062.0,98054.0,0.30574768]
[1735198201411,0.00111553,98062.0,98053.0,0.16061429]